bitfinex/quotes_SOLUSD_20241127
["timestamp","ask_amount","ask_price","bid_price","bid_amount"]
[1732697739973,8.45717121,233.62,233.56,4.2814]
[1732697740172,8.45717121,233.62,233.56,10.94615251]
[1732697740373,8.45717121,233.62,233.56,4.2814]
[1732697741103,11.88157121,233.62,233.55,6.66475251]
[1732697742292,11.88157121,233.62,233.54,4.2818]
[1732697742293,11.88157121,233.62,233.54,10.94655251]
[1732697742793,11.88157121,233.62,233.54,6.66475251]
[1732697746074,8.45717121,233.6,233.54,6.66475251]
[1732697746370,8.45717121,233.6,233.53,12.73917121]
[1732697746371,8.45717121,233.6,233.53,19.40392372]
[1732697746566,8.45717121,233.58,233.53,6.66475251]
[1732697746788,8.45717121,233.56,233.51,15.6164]
[1732697747394,8.45717121,233.58,233.51,15.6164]
[1732697747895,11.9837,233.65,233.51,19.8988]
[1732697748079,8.45717121,233.6,233.52,8.45717121]
[1732697749076,11.88187121,233.6,233.52,8.45717121]
[1732697749481,11.88187121,233.6,233.52,12.73937121]
[1732697750096,8.45717121,233.63,233.54,8.45717121]
[1732697750474,8.45717121,233.61,233.54,8.45717121]
[1732697750674,8.45717121,233.62,233.54,8.45717121]
[1732697750897,11.9821,233.68,233.55,4.2817]
[1732697751098,8.45717121,233.63,233.55,4.2817]
[1732697751397,8.45717121,233.62,233.54,8.45717121]
[1732697751582,8.45717121,233.62,233.54,12.73907121]
[1732697752886,11.88147121,233.62,233.54,12.73907121]
[1732697754297,11.88147121,233.62,233.52,12.73937121]
[1732697754981,8.45717121,233.6,233.52,12.73937121]
[1732697757398,8.45717121,233.62,233.52,12.73937121]
[1732697757902,8.45717121,233.61,233.52,12.73937121]
[1732697758107,3.424,233.64,233.52,12.73937121]
[1732697758398,8.45717121,233.61,233.52,12.73937121]
[1732697758895,8.45717121,233.61,233.54,8.45717121]
[1732697759500,3.4244,233.62,233.54,8.45717121]
[1732697759501,3.4244,233.62,233.54,12.73907121]
[1732697759719,11.88157121,233.62,233.54,12.73907121]
[1732697759996,3.424,233.64,233.56,8.45717121]
[1732697760501,33.82868484,233.76,233.6,8.45717121]
[1732697760502,8.45717121,233.67,233.6,8.45717121]
[1732697760884,11.88077121,233.67,233.6,8.45717121]
[1732697761995,11.88077121,233.67,233.6,12.73787121]
[1732697762310,11.88077121,233.67,233.6,4.2807]
[1732697762603,8.45717121,233.67,233.6,4.2807]
[1732697763089,8.45717121,233.67,233.6,20.9193]
[1732697763809,8.45717121,233.69,233.6,29.37647121]
[1732697763995,8.45717121,233.69,233.62,8.45717121]
[1732697764303,8.45717121,233.71,233.64,8.45717121]
[1732697764485,8.45717121,233.75,233.66,8.45717121]
[1732697764690,8.45717121,233.75,233.68,8.45717121]
[1732697765079,8.45717121,233.75,233.66,8.45717121]
[1732697765598,11.87977121,233.75,233.66,8.45717121]
[1732697766504,11.87977121,233.75,233.66,12.73677121]
[1732697767185,8.45717121,233.73,233.66,12.73677121]
[1732697767387,8.45717121,233.71,233.64,4.2799]
[1732697767612,8.45717121,233.69,233.62,28.057184]
[1732697770594,8.45717121,233.71,233.63,8.45717121]
[1732697770797,8.45717121,233.71,233.64,4.28]
[1732697774111,8.45717121,233.7,233.64,4.28]
[1732697774410,20.0,233.73,233.64,4.28]
[1732697774616,8.45717121,233.71,233.64,4.28]
[1732697775492,3.4228,233.73,233.64,4.28]
[1732697775692,8.45717121,233.71,233.64,4.28]
[1732697776601,3.4229,233.72,233.64,4.28]
[1732697776792,8.45717121,233.71,233.64,4.28]
[1732697778111,8.45717121,233.73,233.65,32.23405521]
[1732697779411,8.45717121,233.75,233.68,23.776884]
[1732697780301,8.45717121,233.75,233.69,4.2791]
[1732697784916,8.45717121,233.75,233.69,3.68729973]
[1732697785215,8.45717121,233.76,233.69,3.68729973]
[1732697785396,8.45717121,233.74,233.67,28.056384]
[1732697785725,8.45717121,233.72,233.66,15.2458]
[1732697785901,8.45717121,233.7,233.66,15.2458]
[1732697787119,8.45717121,233.7,233.66,19.5255]
[1732697791209,3.4227,233.74,233.66,19.5255]
[1732697791410,8.45717121,233.72,233.66,19.5255]
[1732697792115,3.4217,233.8,233.68,8.45717121]
[1732697792425,8.45717121,233.76,233.68,8.45717121]
[1732697793613,3.4221,233.77,233.69,4.2791]
[1732697794011,8.45717121,233.76,233.69,4.2791]
[1732697796032,8.45717121,233.77,233.71,6.0156]
[1732697797003,8.45717121,233.77,233.71,10.2942]
[1732697801911,8.45717121,233.78,233.71,10.2942]
[1732697802111,8.45717121,233.77,233.71,10.2942]
[1732697803126,8.45717121,233.77,233.67,28.056384]
[1732697803127,8.45717121,233.74,233.67,28.056384]
[1732697803312,8.45717121,233.72,233.67,23.776884]
[1732697803511,3.4221,233.77,233.66,21.457]
[1732697803512,8.45717121,233.7,233.66,21.457]
[1732697803818,8.45717121,233.7,233.61,4.3804]
[1732697804015,8.45717121,233.67,233.61,20.7503]
[1732697805219,33.82868484,233.76,233.61,16.4699]
[1732697805220,8.45717121,233.64,233.61,16.4699]
[1732697806430,20.0,233.7,233.61,16.4699]
[1732697806611,8.45717121,233.66,233.61,16.4699]
[1732697807024,8.45717121,233.65,233.61,16.4699]
[1732697807433,8.45717121,233.64,233.61,16.4699]
[1732697807833,8.45717121,233.65,233.61,16.4699]
[1732697809230,3.4236,233.68,233.61,16.4699]
[1732697809434,8.45717121,233.66,233.61,16.4699]
[1732697814138,8.45717121,233.64,233.57,4.2813]
[1732697817535,3.4233,233.69,233.57,4.2813]
[1732697817740,8.45717121,233.65,233.57,4.2813]
[1732697821744,3.4233,233.69,233.57,4.2813]
[1732697822046,8.45717121,233.65,233.57,4.2813]
[1732697823023,8.45717121,233.65,233.56,12.73867121]
[1732697824740,8.45717121,233.65,233.58,8.45717121]
[1732697824935,8.45717121,233.67,233.58,8.45717121]
[1732697825136,8.45717121,233.67,233.6,8.45717121]
[1732697825329,8.45717121,233.69,233.61,23.776884]
[1732697826635,8.45717121,233.69,233.62,4.2804]
[1732697828160,3.4223,233.76,233.63,16.0144]
[1732697828451,8.45717121,233.74,233.66,8.45717121]
[1732697828624,8.45717121,233.76,233.68,8.45717121]
[1732697829238,8.45717121,233.72,233.63,16.1144]
[1732697829439,3.4221,233.78,233.63,16.1144]
[1732697829440,8.45717121,233.7,233.63,16.0144]
[1732697829753,8.45717121,233.69,233.63,16.0144]
[1732697830127,8.45717121,233.69,233.64,4.28]
[1732697831038,8.45717121,233.71,233.64,4.28]
[1732697832237,11.88017121,233.71,233.64,4.28]
[1732697832454,8.45717121,233.65,233.63,16.0144]
[1732697833160,8.45717121,233.65,233.58,20.5409]
[1732697838448,8.45717121,233.67,233.58,20.5409]
[1732697841155,8.45717121,233.65,233.58,20.5409]
[1732697848068,3.423,233.71,233.58,20.5409]
[1732697848259,8.45717121,233.67,233.58,20.5409]
[1732697848450,8.45717121,233.67,233.59,32.23405521]
[1732697848650,8.45717121,233.67,233.59,8.45717121]
[1732697849369,8.45717121,233.67,233.59,12.73797121]
[1732697850474,8.45717121,233.63,233.58,16.2598]
[1732697851468,8.45717121,233.65,233.58,20.5409]
[1732697851646,8.45717121,233.67,233.58,28.99807121]
[1732697851968,8.45717121,233.65,233.58,28.99807121]
[1732697853467,8.45717121,233.67,233.58,28.99807121]
[1732697853764,8.45717121,233.67,233.58,35.71054837]
[1732697854676,11.88077121,233.67,233.58,35.71054837]
[1732697855368,11.88077121,233.67,233.59,6.71247716]
[1732697855867,11.88077121,233.67,233.59,10.99327716]
[1732697859698,8.45717121,233.65,233.59,10.99327716]
[1732697866968,3.4233,233.69,233.59,10.99327716]
[1732697867180,20.0,233.72,233.59,19.45044837]
[1732697867357,20.0,233.73,233.61,30.48936116]
[1732697867673,8.45717121,233.69,233.61,30.48936116]
[1732697867874,8.45717121,233.69,233.62,6.71247716]
[1732697868457,8.45717121,233.69,233.62,10.99277716]
[1732697868657,8.45717121,233.67,233.62,10.99277716]
[1732697870181,8.45717121,233.68,233.62,10.99277716]
[1732697871654,3.4232,233.7,233.62,10.99277716]
[1732697871854,8.45717121,233.68,233.62,10.99277716]
[1732697872366,8.45717121,233.72,233.64,8.45717121]
[1732697873978,8.45717121,233.72,233.65,4.2799]
[1732697874980,8.45717121,233.71,233.64,4.28]
[1732697878380,8.45717121,233.71,233.62,6.71247716]
[1732697878381,8.45717121,233.69,233.62,10.99287716]
[1732697879060,8.45717121,233.69,233.62,4.2804]
[1732697879582,3.4227,233.73,233.58,16.2598]
[1732697879583,8.45717121,233.63,233.58,27.25337716]
[1732697879879,8.45717121,233.63,233.58,20.5409]
[1732697880259,8.45717121,233.63,233.58,16.2598]
[1732697880460,8.45717121,233.61,233.58,16.2598]
[1732697882884,8.45717121,233.61,233.56,4.2815]
[1732697883071,8.45717121,233.59,233.53,21.83967716]
[1732697883381,8.45717121,233.57,233.53,15.1272]
[1732697884078,8.45717121,233.57,233.53,19.4092]
[1732697885283,8.45717121,233.57,233.53,15.1272]
[1732697886287,33.82868484,233.64,233.53,15.1272]
[1732697886288,8.45717121,233.61,233.53,19.4093]
[1732697887319,8.45717121,233.61,233.55,4.2817]
[1732697887493,3.424,233.64,233.55,4.2817]
[1732697887663,8.45717121,233.62,233.55,4.2817]
[1732697891590,23.4238,233.66,233.56,8.45717121]
[1732697892093,8.45717121,233.64,233.56,8.45717121]
[1732697892878,8.45717121,233.64,233.57,4.2813]
[1732697893582,23.4238,233.66,233.57,4.2813]
[1732697893583,8.45717121,233.62,233.57,4.2813]
[1732697894824,8.45717121,233.62,233.54,8.45717121]
[1732697894825,8.45717121,233.62,233.55,4.2817]
[1732697895778,8.45717121,233.6,233.54,4.2818]
[1732697895980,8.45717121,233.58,233.54,4.2818]
[1732697896986,8.45717121,233.56,233.53,15.1272]
[1732697897303,8.45717121,233.56,233.51,4.2823]
[1732697899095,8.45717121,233.56,233.49,4.2828]
[1732697903300,8.45717121,233.58,233.5,8.45717121]
[1732697903880,8.45717121,233.58,233.51,4.2824]
[1732697908990,8.45717121,233.58,233.5,4.2826]
[1732697910807,8.45717121,233.58,233.49,8.45717121]
[1732697912084,8.45717121,233.58,233.5,4.2826]
[1732697913392,8.45717121,233.56,233.48,4.283]
[1732697913593,3.4248,233.59,233.49,8.45717121]
[1732697913797,8.45717121,233.56,233.49,8.45717121]
[1732697914826,8.45717121,233.59,233.51,32.23405521]
[1732697914991,8.45717121,233.61,233.54,8.45717121]
[1732697915191,22.3561,233.67,233.51,23.776884]
[1732697915192,8.45717121,233.64,233.56,8.45717121]
[1732697915415,8.45717121,233.64,233.57,23.776884]
[1732697916706,8.45717121,233.64,233.57,28.058084]
[1732697917091,3.4239,233.65,233.57,28.058084]
[1732697917092,8.45717121,233.63,233.57,28.058084]
[1732697918811,8.45717121,233.62,233.57,28.058084]
[1732697921221,3.4239,233.65,233.57,36.51525521]
[1732697921515,8.45717121,233.62,233.57,28.058084]
[1732697921889,8.45717121,233.61,233.57,28.058084]
[1732697922089,8.45717121,233.61,233.55,15.8158]
[1732697922090,8.45717121,233.58,233.55,15.8158]
[1732697922897,8.45717121,233.58,233.5,4.2826]
[1732697923126,8.45717121,233.58,233.51,8.45717121]
[1732697923290,8.45717121,233.58,233.52,23.776884]
[1732697923496,8.45717121,233.58,233.52,28.059084]
[1732697929005,8.45717121,233.57,233.52,28.059084]
[1732697931494,20.0,233.61,233.52,28.059084]
[1732697931700,8.45717121,233.58,233.52,28.059084]
[1732697931894,3.4242,233.63,233.52,28.059084]
[1732697931895,20.0,233.61,233.52,28.059084]
[1732697932127,20.0,233.61,233.52,36.51625521]
[1732697932304,28.45717121,233.61,233.52,36.51625521]
[1732697932635,31.88177121,233.61,233.52,36.51625521]
[1732697933105,8.45717121,233.59,233.52,36.51625521]
[1732697933808,8.45717121,233.59,233.52,23.776884]
[1732697934011,11.88197121,233.59,233.51,28.059284]
[1732697936730,20.0,233.63,233.52,8.45717121]
[1732697937027,8.45717121,233.6,233.52,8.45717121]
[1732697937526,8.45717121,233.58,233.51,28.059284]
[1732697942405,3.4246,233.61,233.51,28.059284]
[1732697942605,8.45717121,233.63,233.56,23.776884]
[1732697943636,8.45717121,233.61,233.55,4.2817]
[1732697943941,8.45717121,233.61,233.56,23.776884]
[1732697944230,8.45717121,233.59,233.52,6.71247716]
[1732697944618,8.45717121,233.59,233.52,23.776884]
[1732697945338,8.45717121,233.59,233.52,28.059084]
[1732697951634,6.3959,233.7,233.52,28.059084]
[1732697951820,28.45717121,233.64,233.56,23.776884]
[1732697952828,28.45717121,233.64,233.56,28.058284]
[1732697954136,8.45717121,233.64,233.56,28.058284]
[1732697955840,11.88117121,233.64,233.56,28.058284]
[1732697956538,3.424,233.64,233.56,28.058284]
[1732697956729,8.45717121,233.63,233.56,28.058284]
[1732697957840,8.45717121,233.62,233.56,28.058284]
[1732697960139,3.424,233.64,233.56,28.058284]
[1732697960327,8.45717121,233.62,233.56,28.058284]
[1732697960527,20.0,233.67,233.56,28.058284]
[1732697960725,33.82868484,233.64,233.54,6.71247716]
[1732697960923,33.82868484,233.64,233.51,6.71247716]
[1732697961126,8.45717121,233.56,233.51,6.71247716]
[1732697961535,20.0,233.61,233.51,6.71247716]
[1732697961724,8.45717121,233.57,233.51,10.99487716]
[1732697962242,8.45717121,233.57,233.51,4.2824]
[1732697964035,3.4246,233.6,233.51,19.45204837]
[1732697964243,8.45717121,233.58,233.51,19.45204837]
[1732697965819,20.0,233.63,233.52,23.776884]
[1732697966032,8.45717121,233.62,233.55,4.2817]
[1732697966339,8.45717121,233.62,233.56,23.776884]
[1732697967641,8.45717121,233.61,233.56,28.058284]
[1732697971522,8.45717121,233.63,233.56,28.058284]
[1732697971726,3.4233,233.69,233.59,23.776884]
[1732697972021,8.45717121,233.68,233.59,32.23405521]
[1732697972241,3.4233,233.69,233.61,8.45717121]
[1732697972242,8.45717121,233.69,233.61,8.45717121]
[1732697972539,3.4226,233.74,233.63,23.776884]
[1732697972719,8.45717121,233.7,233.63,23.776884]
[1732697972915,3.4226,233.74,233.63,23.776884]
[1732697973119,8.45717121,233.71,233.63,32.23405521]
[1732697973537,8.45717121,233.71,233.65,23.776884]
[1732697974128,8.45717121,233.7,233.65,23.776884]
[1732697974936,3.4223,233.76,233.65,36.51385521]
[1732697975130,8.45717121,233.72,233.65,52.16345521]
[1732697975327,8.45717121,233.73,233.65,52.16345521]
[1732697976046,8.45717121,233.72,233.65,52.16345521]
[1732697976834,8.45717121,233.73,233.65,52.16345521]
[1732697977036,8.45717121,233.73,233.67,23.776884]
[1732697977545,8.45717121,233.74,233.67,8.45717121]
[1732697977730,8.45717121,233.74,233.68,23.776884]
[1732697977945,8.45717121,233.75,233.68,23.776884]
[1732697978641,8.45717121,233.74,233.68,23.776884]
[1732697978846,8.45717121,233.74,233.68,28.056184]
[1732697980733,8.45717121,233.73,233.68,28.056184]
[1732697989644,8.45717121,233.72,233.68,28.056184]
[1732697992336,8.45717121,233.69,233.65,15.6496]
[1732697992643,8.45717121,233.66,233.65,15.6496]
[1732697992834,33.82868484,233.76,233.65,15.6496]
[1732697992835,8.45717121,233.67,233.65,15.6496]
[1732697995537,8.45717121,233.71,233.66,23.776884]
[1732697995738,3.4223,233.76,233.66,23.776884]
[1732697995939,8.45717121,233.7,233.66,23.776884]
[1732697997063,8.45717121,233.7,233.66,28.056384]
[1732697998143,8.45717121,233.71,233.66,23.776884]
[1732698000339,8.45717121,233.71,233.66,28.056484]
[1732698000538,8.45717121,233.74,233.66,36.51365521]
[1732698000755,8.45717121,233.74,233.67,8.45717121]
[1732698000946,8.45717121,233.74,233.68,23.776884]
[1732698002047,8.45717121,233.74,233.7,23.776884]
[1732698003163,82.8,233.8,233.68,23.776884]
[1732698003350,8.45717121,233.74,233.68,23.776884]
[1732698003554,8.45717121,233.74,233.66,32.23405521]
[1732698005970,8.45717121,233.74,233.67,8.45717121]
[1732698006155,8.45717121,233.74,233.68,23.776884]
[1732698006471,8.45717121,233.75,233.68,23.776884]
[1732698007067,8.45717121,233.74,233.68,23.776884]
[1732698008263,20.0,233.81,233.71,8.45717121]
[1732698008477,8.45717121,233.79,233.72,8.45717121]
[1732698008768,11.6626284,233.9,233.77,8.45717121]
[1732698008769,110.6667284,233.9,233.77,8.45717121]
[1732698008960,82.8,233.95,233.79,8.45717121]
[1732698009151,8.45717121,233.86,233.78,8.45717121]
[1732698009468,8.45717121,233.85,233.78,8.45717121]
[1732698009648,82.8,233.95,233.75,8.45717121]
[1732698009649,8.45717121,233.84,233.75,8.45717121]
[1732698009852,8.45717121,233.78,233.73,16.2504]
[1732698010073,8.45717121,233.77,233.73,16.2504]
[1732698010247,8.45717121,233.76,233.73,16.2504]
[1732698010552,5.0,233.87,233.73,16.2504]
[1732698010756,8.45717121,233.74,233.67,16.2504]
[1732698010954,20.0,233.85,233.71,8.45717121]
[1732698011154,8.45717121,233.78,233.71,8.45717121]
[1732698012156,8.45717121,233.78,233.69,8.45717121]
[1732698012370,8.45717121,233.76,233.7,20.0]
[1732698012873,8.45717121,233.76,233.68,8.45717121]
[1732698013057,8.45717121,233.78,233.7,8.45717121]
[1732698014071,8.45717121,233.79,233.7,8.45717121]
[1732698015443,8.45717121,233.79,233.72,8.45717121]
[1732698015643,8.45717121,233.81,233.72,8.45717121]
[1732698015847,8.45717121,233.81,233.74,8.45717121]
[1732698016573,8.45717121,233.83,233.74,8.45717121]
[1732698017077,8.45717121,233.85,233.76,24.13697121]
[1732698017453,8.45717121,233.83,233.76,24.13697121]
[1732698019754,8.45717121,233.85,233.76,24.13697121]
[1732698021180,8.45717121,233.81,233.69,6.3283]
[1732698021377,8.45717121,233.79,233.71,8.45717121]
[1732698021882,8.45717121,233.82,233.74,8.45717121]
[1732698022056,4.30784578,233.88,233.75,8.45717121]
[1732698022261,8.45717121,233.84,233.75,8.45717121]
[1732698022773,8.45717121,233.84,233.77,8.45717121]
[1732698023865,8.45717121,233.84,233.75,8.45717121]
[1732698025281,22.4749,233.9,233.77,8.45717121]
[1732698025462,8.45717121,233.86,233.77,8.45717121]
[1732698026188,8.45717121,233.82,233.73,20.0]
[1732698026377,22.4749,233.9,233.73,28.45717121]
[1732698026583,8.45717121,233.83,233.75,8.45717121]
[1732698027084,8.45717121,233.85,233.75,8.45717121]
[1732698027461,8.45717121,233.85,233.78,8.45717121]
[1732698027778,8.45717121,233.85,233.76,8.45717121]
[1732698028387,8.45717121,233.83,233.76,8.45717121]
[1732698029275,8.45717121,233.81,233.7,16.4134]
[1732698029472,8.45717121,233.81,233.72,8.45717121]
[1732698031764,8.45717121,233.79,233.7,16.4134]
[1732698031964,8.45717121,233.79,233.7,24.87057121]
[1732698032164,8.45717121,233.79,233.7,16.4134]
[1732698032369,8.45717121,233.79,233.7,24.87057121]
[1732698033881,8.45717121,233.79,233.72,8.45717121]
[1732698034088,8.45717121,233.81,233.72,8.45717121]
[1732698034487,8.45717121,233.81,233.74,8.45717121]
[1732698034697,8.45717121,233.85,233.76,8.45717121]
[1732698035296,8.45717121,233.83,233.76,8.45717121]
[1732698036197,8.45717121,233.83,233.76,12.73497121]
[1732698036492,3.4211,233.84,233.76,12.73497121]
[1732698036698,8.45717121,233.83,233.76,4.2778]
[1732698036885,8.45717121,233.81,233.71,4.2788]
[1732698037082,8.45717121,233.79,233.7,16.4134]
[1732698037401,8.45717121,233.75,233.7,16.4134]
[1732698038175,8.45717121,233.75,233.67,4.2795]
[1732698038376,16.61895053,233.76,233.68,13.19665053]
[1732698038584,16.61875053,233.78,233.7,13.19665053]
[1732698038788,13.19665053,233.78,233.7,13.19665053]
[1732698039770,13.19665053,233.78,233.7,17.47545053]
[1732698042681,13.19665053,233.74,233.66,4.2797]
[1732698042997,20.0,233.78,233.67,13.19665053]
[1732698043199,13.19665053,233.77,233.69,13.19665053]
[1732698043377,13.19665053,233.77,233.66,4.2797]
[1732698043378,16.61845053,233.79,233.71,13.19665053]
[1732698044488,36.61825053,233.81,233.71,13.19665053]
[1732698044694,36.61825053,233.81,233.72,4.2786]
[1732698044934,33.19665053,233.81,233.72,4.2786]
[1732698045587,36.61815053,233.81,233.72,4.2786]
[1732698045980,13.19665053,233.79,233.72,4.2786]
[1732698046388,13.19665053,233.75,233.67,17.47615053]
[1732698046579,13.19665053,233.75,233.67,13.19665053]
[1732698046905,3.4226,233.74,233.67,13.19665053]
[1732698047778,13.19665053,233.75,233.67,17.47605053]
[1732698048089,16.61905053,233.75,233.67,17.47605053]
[1732698050095,13.19665053,233.75,233.67,17.47605053]
[1732698050294,13.19665053,233.77,233.69,13.19665053]
[1732698053709,13.19665053,233.73,233.66,4.2797]
[1732698055002,13.19665053,233.71,233.65,15.1346]
[1732698055302,13.19665053,233.69,233.65,15.1346]
[1732698055682,13.19665053,233.69,233.62,20.09272326]
[1732698057100,13.19665053,233.67,233.62,20.09272326]
[1732698057687,13.19665053,233.67,233.59,28.90355053]
[1732698057881,13.19665053,233.67,233.59,33.18445053]
[1732698058307,8.45264752,233.66,233.59,28.44044752]
[1732698058914,20.0,233.71,233.59,28.44044752]
[1732698059112,8.45264752,233.66,233.59,28.44044752]
[1732698059415,8.45264752,233.66,233.59,15.7069]
[1732698059794,11.9795,233.73,233.53,28.04924752]
[1732698059795,8.45264752,233.62,233.53,28.04924752]
[1732698060017,82.8,233.71,233.53,28.04924752]
[1732698060018,8.45264752,233.6,233.53,15.3145]
[1732698060183,8.45264752,233.6,233.53,23.76714752]
[1732698060813,8.45264752,233.6,233.53,15.3145]
[1732698061008,11.87724752,233.6,233.53,15.3145]
[1732698061499,20.0,233.63,233.53,15.3145]
[1732698061805,8.45264752,233.6,233.53,15.3145]
[1732698062309,13.21568931,233.57,233.47,15.4888]
[1732698062483,13.21568931,233.57,233.48,13.21568931]
[1732698062689,13.21568931,233.57,233.5,13.21568931]
[1732698062884,13.21568931,233.63,233.55,4.2817]
[1732698063090,13.21568931,233.63,233.56,13.21568931]
[1732698063890,13.21568931,233.61,233.54,13.21568931]
[1732698064196,13.21568931,233.61,233.53,4.282]
[1732698064197,13.21568931,233.61,233.51,17.49798931]
[1732698064421,13.21568931,233.59,233.51,17.49798931]
[1732698065688,13.21568931,233.59,233.51,4.2823]
[1732698065885,13.21568931,233.59,233.51,17.49798931]
[1732698066909,16.64048931,233.59,233.51,13.21568931]
[1732698067213,13.21568931,233.57,233.49,17.49838931]
[1732698067392,13.21568931,233.57,233.5,23.776884]
[1732698085821,20.0,233.54,233.5,23.776884]
[1732698089724,13.21568931,233.57,233.5,23.776884]
[1732698108842,20.0,233.54,233.5,23.776884]
[1732698114950,0.27491353,233.53,233.5,23.776884]
[1732698115132,0.81690484,233.53,233.5,23.776884]
[1732698115331,17.97370284,233.53,233.5,23.776884]
[1732698125346,25.72,233.49,233.45,17.2945]
[1732698125545,4.84983709,233.5,233.45,17.2945]
[1732698125546,30.56983709,233.48,233.45,17.2945]
[1732698125755,4.84983709,233.48,233.45,17.2945]
[1732698128748,22.01600209,233.48,233.45,17.2945]
[1732698138157,17.166165,233.48,233.45,17.2945]
[1732698138351,4.84983709,233.47,233.45,17.2945]
[1732698144155,4.84983709,233.47,233.45,3.0545]
[1732698144859,4.84983709,233.47,233.37,6.69757442]
[1732698155273,17.166165,233.48,233.37,6.69757442]
[1732698155569,4.84983709,233.47,233.37,6.69757442]
[1732698160672,17.166165,233.48,233.37,6.69757442]
[1732698160859,4.84983709,233.47,233.37,6.69757442]
[1732698163959,4.84983709,233.47,233.15,274.38242058]
[1732698181405,4.84983709,233.47,233.36,81.9074176]
[1732698182111,4.84983709,233.47,233.36,56.9074176]
[1732698184618,13.57242148,233.47,233.36,56.9074176]
[1732698187815,8.65071426,233.46,233.36,56.9074176]
[1732698188313,4.84983709,233.45,233.36,56.9074176]
[1732698188515,4.84983709,233.45,233.36,0.2074176]
[1732698190320,4.84983709,233.45,233.33,15.39286412]
[1732698191603,8.71509553,233.44,233.33,15.39286412]
[1732698197330,4.84983709,233.43,233.33,15.39286412]
[1732698198332,4.84983709,233.43,233.3,40.18544652]
[1732698221847,8.71509553,233.44,233.3,40.18544652]
[1732698227246,4.84983709,233.43,233.3,40.18544652]
[1732698232946,8.71509553,233.44,233.3,40.18544652]
[1732698234052,8.71509553,233.44,233.3,39.18544652]
[1732698237045,17.166165,233.48,233.3,39.18544652]
[1732698237433,8.9128237,233.47,233.3,39.18544652]
[1732698237757,17.166165,233.48,233.3,39.18544652]
[1732698239254,8.78250395,233.47,233.3,39.18544652]
[1732698239753,4.84983709,233.46,233.3,39.18544652]
[1732698244869,8.78250395,233.47,233.3,39.18544652]
[1732698245159,8.78250395,233.47,233.3,14.18544652]
[1732698249464,17.187234,233.46,233.3,14.18544652]
[1732698249843,17.187234,233.46,233.29,42.76604188]
[1732698250467,8.78250395,233.47,233.29,42.76604188]
[1732698255269,17.193122,233.46,233.29,42.76604188]
[1732698255466,17.193122,233.46,233.29,41.32944188]
[1732698256153,8.78250395,233.47,233.29,41.32944188]
[1732698259674,8.78250395,233.47,233.29,16.32944188]
[1732698262778,21.41594348,233.69,233.29,16.32944188]
[1732698264271,17.188795,233.68,233.29,16.32944188]
[1732698264472,20.0,233.54,233.29,16.32944188]
[1732698264657,10.05799789,233.53,233.27,58.45421348]
[1732698278304,10.05799789,233.53,233.27,33.45421348]
[1732698281293,17.203933,233.52,233.27,33.45421348]
[1732698281604,11.03475845,233.51,233.27,29.68911348]
[1732698283416,11.03475845,233.51,233.27,4.68911348]
[1732698292814,11.03475845,233.51,233.27,4.16851348]
[1732698309128,10.33065677,233.5,233.27,4.16851348]
[1732698329329,17.5385481,233.69,233.27,4.16851348]
[1732698333866,20.0,233.54,233.27,4.16851348]
[1732698334263,17.5385481,233.69,233.27,4.16851348]
[1732698335952,20.0,233.54,233.27,4.16851348]
[1732698346374,17.176976,233.53,233.27,4.16851348]
[1732698351874,12.176976,233.53,233.27,4.16851348]
[1732698357378,9.81716107,233.68,233.27,4.16851348]
[1732698360384,20.0,233.54,233.27,4.16851348]
[1732698364598,9.81716107,233.68,233.27,4.16851348]
[1732698365786,20.0,233.54,233.27,4.16851348]
[1732698367089,9.81716107,233.68,233.27,4.16851348]
[1732698369989,17.4557158,233.69,233.27,4.16851348]
[1732698371784,20.0,233.54,233.27,4.16851348]
[1732698390611,12.48610564,233.68,233.27,4.16851348]
[1732698393318,20.0,233.54,233.27,4.16851348]
[1732698395918,12.48610564,233.68,233.27,4.16851348]
[1732698397315,18.05235502,233.85,233.27,4.16851348]
[1732698398819,20.0,233.54,233.27,4.16851348]
[1732698399821,18.05235502,233.85,233.27,4.16851348]
[1732698401222,11.27324477,233.84,233.27,4.16851348]
[1732698401404,20.0,233.54,233.27,4.16851348]
[1732698401604,11.27324477,233.84,233.27,4.16851348]
[1732698401806,17.153803,233.83,233.27,4.16851348]
[1732698402005,11.27324477,233.84,233.27,4.16851348]
[1732698402310,28.42646277,233.84,233.27,4.16851348]
[1732698404324,20.0,233.54,233.27,4.16851348]
[1732698407227,20.0,233.54,233.28,17.155527]
[1732698414139,28.42646277,233.84,233.28,17.155527]
[1732698415841,20.0,233.54,233.28,17.155527]